[Event "*** Titled Tuesday 3|2 Blitz"]
[Site "Chess.com"]
[Date "2016.09.06"]
[Round "4"]
[White "Astaneh"]
[Black "igorkovalenko"]
[Result "0-1"]
[WhiteElo "2479"]
[BlackElo "2606"]
[TimeControl "180+2"]
[EndTime "11:51:47 PDT"]
[Termination "igorkovalenko won by resignation"]

1. d4 {[%clk 0:03:02]} 1... e6 {[%clk 0:03:01.9]} 2. Nf3 {[%clk 0:03:03.3]} 2...
c5 {[%clk 0:03:02.8]} 3. g3 {[%clk 0:03:01.3]} 3... cxd4 {[%clk 0:03:03.9]} 4.
Nxd4 {[%clk 0:03:02.4]} 4... Nc6 {[%clk 0:03:04.7]} 5. Nxc6 {[%clk 0:03:02.3]}
5... bxc6 {[%clk 0:03:05]} 6. Bg2 {[%clk 0:03:03.5]} 6... d5 {[%clk 0:03:06.4]}
7. O-O {[%clk 0:03:03.9]} 7... Nf6 {[%clk 0:03:07.3]} 8. c4 {[%clk 0:03:04.7]}
8... Be7 {[%clk 0:03:07.9]} 9. b3 {[%clk 0:03:04.9]} 9... O-O {[%clk 0:03:08.9]}
10. Nd2 {[%clk 0:03:05.7]} 10... a5 {[%clk 0:03:10]} 11. Bb2 {[%clk 0:03:06]}
11... a4 {[%clk 0:03:10.1]} 12. bxa4 {[%clk 0:03:05.5]} 12... Qa5 {[%clk
0:03:10.7]} 13. e4 {[%clk 0:02:53.9]} 13... dxc4 {[%clk 0:02:53]} 14. Nxc4
{[%clk 0:02:50]} 14... Qxa4 {[%clk 0:02:54]} 15. Nb6 {[%clk 0:02:48.7]} 15...
Qxd1 {[%clk 0:02:54.4]} 16. Rfxd1 {[%clk 0:02:50.1]} 16... Rb8 {[%clk
0:02:55.4]} 17. Nxc8 {[%clk 0:02:48]} 17... Rfxc8 {[%clk 0:02:57.3]} 18. Be5
{[%clk 0:02:44.1]} 18... Rb5 {[%clk 0:02:56.5]} 19. Bf4 {[%clk 0:02:36.3]} 19...
Ba3 {[%clk 0:02:50.6]} 20. Rd3 {[%clk 0:02:31.9]} 20... Ra5 {[%clk 0:02:48]} 21.
Rad1 {[%clk 0:02:26.4]} 21... h6 {[%clk 0:02:39.3]} 22. Rc3 {[%clk 0:02:13.2]}
22... g5 {[%clk 0:02:14.3]} 23. Be3 {[%clk 0:02:03.7]} 23... Ng4 {[%clk
0:02:15.4]} 24. Bd4 {[%clk 0:01:39.7]} 24... Bb2 {[%clk 0:02:14.1]} 25. Rc2
{[%clk 0:01:16.1]} 25... Bxd4 {[%clk 0:02:15.1]} 26. Rxd4 {[%clk 0:01:18]} 26...
c5 {[%clk 0:02:16.6]} 27. Rdc4 {[%clk 0:01:18.6]} 27... Ne5 {[%clk 0:02:17]} 28.
R4c3 {[%clk 0:01:20.3]} 28... g4 {[%clk 0:02:18.2]} 29. h3 {[%clk 0:01:21.2]}
29... h5 {[%clk 0:02:19.4]} 30. hxg4 {[%clk 0:01:22.7]} 30... hxg4 {[%clk
0:02:21.3]} 31. Kf1 {[%clk 0:01:12.6]} 31... Kf8 {[%clk 0:02:22.4]} 32. Ke2
{[%clk 0:01:13.5]} 32... Ke7 {[%clk 0:02:23.7]} 33. Ke3 {[%clk 0:01:12.3]} 33...
Kf6 {[%clk 0:02:16.4]} 34. Bf1 {[%clk 0:01:12.4]} 34... Kg5 {[%clk 0:02:16.4]}
35. a4 {[%clk 0:01:03]} 35... Rxa4 {[%clk 0:02:13.1]} 36. Rxc5 {[%clk
0:01:03.5]} 36... Rxc5 {[%clk 0:02:13.8]} 37. Rxc5 {[%clk 0:01:05.4]} 37... Ra3+
{[%clk 0:02:12.4]} 38. Kd4 {[%clk 0:00:51]} 38... f6 {[%clk 0:02:12.7]} 39. Rc2
{[%clk 0:00:52.3]} 39... Nf3+ {[%clk 0:02:12]} 40. Kc5 {[%clk 0:00:50.6]} 40...
e5 {[%clk 0:02:11]} 41. Rb2 {[%clk 0:00:47]} 41... Nd4 {[%clk 0:02:11.1]} 42.
Bc4 {[%clk 0:00:44.3]} 42... Rc3 {[%clk 0:01:59.9]} 43. Kd5 {[%clk 0:00:44.1]}
43... Kg6 {[%clk 0:01:52.1]} 44. Kc5 {[%clk 0:00:30.7]} 44... Nf3 {[%clk
0:01:48.6]} 45. Kb4 {[%clk 0:00:27.8]} 45... Rc1 {[%clk 0:01:48.6]} 46. Be2
{[%clk 0:00:28.7]} 46... Kg5 {[%clk 0:01:31.9]} 47. Bxf3 {[%clk 0:00:16.4]}
47... gxf3 {[%clk 0:01:33.8]} 48. Kb3 {[%clk 0:00:18.3]} 48... Kg4 {[%clk
0:01:33.8]} 49. Rc2 {[%clk 0:00:19]} 49... Re1 {[%clk 0:01:29.6]} 50. Kc3 {[%clk
0:00:13.9]} 50... Kh3 {[%clk 0:01:27.1]} 51. Kd3 {[%clk 0:00:13.8]} 51... Kg2
{[%clk 0:01:27.5]} 52. g4 {[%clk 0:00:15]} 52... Kf1 {[%clk 0:01:24]} 53. Rc6
{[%clk 0:00:09.5]} 53... Kxf2 {[%clk 0:01:25.2]} 54. Rxf6 {[%clk 0:00:11.1]}
54... Rd1+ {[%clk 0:01:26.8]} 55. Kc4 {[%clk 0:00:12.2]} 55... Ke3 {[%clk
0:01:27.8]} 56. g5 {[%clk 0:00:13.7]} 56... f2 {[%clk 0:01:28.5]} 57. g6 {[%clk
0:00:12.5]} 57... Rd4+ {[%clk 0:01:27.5]} 58. Kc5 {[%clk 0:00:13.6]} 58... Rxe4
{[%clk 0:01:29]} 59. Kd6 {[%clk 0:00:14]} 59... Rg4 {[%clk 0:01:30.1]} 60. Kxe5
{[%clk 0:00:15.1]} 60... Rxg6 {[%clk 0:01:15.2]} 61. Rxg6 {[%clk 0:00:17]} 61...
f1=Q {[%clk 0:01:16.2]} 62. Rg3+ {[%clk 0:00:18.7]} 62... Kd2 {[%clk 0:01:17]}
63. Rg4 {[%clk 0:00:19.9]} 63... Qb5+ {[%clk 0:01:16.4]} 64. Kf6 {[%clk
0:00:20.9]} 64... Ke3 {[%clk 0:01:17.5]} 65. Rg5 {[%clk 0:00:21.4]} 65... Qc6+
{[%clk 0:01:18.1]} 66. Kf5 {[%clk 0:00:21.2]} 66... Qd7+ {[%clk 0:01:17.2]} 67.
Kf6 {[%clk 0:00:22.4]} 67... Kf4 {[%clk 0:01:18.2]} 68. Rg7 {[%clk 0:00:20.9]}
68... Qd6+ {[%clk 0:01:18.8]} 69. Kf7 {[%clk 0:00:21.8]} 69... Kf5 {[%clk
0:01:20.3]} 70. Rg1 {[%clk 0:00:20.5]} 70... Qd5+ {[%clk 0:01:21]} 71. Ke8
{[%clk 0:00:18.8]} 71... Qa8+ {[%clk 0:01:22]} 0-1

[Event "*** Titled Tuesday 3|2 Blitz"]
[Site "Chess.com"]
[Date "2016.09.06"]
[Round "4"]
[White "viktorskliarov"]
[Black "Sanan_Sjugirov"]
[Result "0-1"]
[WhiteElo "2444"]
[BlackElo "2711"]
[TimeControl "180+2"]
[EndTime "11:51:51 PDT"]
[Termination "Sanan_Sjugirov won by resignation"]

1. e4 {[%clk 0:03:02]} 1... e5 {[%clk 0:03:01]} 2. Nc3 {[%clk 0:03:01.8]} 2...
Nf6 {[%clk 0:03:00.9]} 3. Bc4 {[%clk 0:03:03.3]} 3... Bc5 {[%clk 0:02:57.3]} 4.
d3 {[%clk 0:03:03.3]} 4... c6 {[%clk 0:02:57.2]} 5. Nf3 {[%clk 0:02:57.7]} 5...
d6 {[%clk 0:02:55.6]} 6. h3 {[%clk 0:02:57.6]} 6... b5 {[%clk 0:02:54]} 7. Bb3
{[%clk 0:02:57.9]} 7... a5 {[%clk 0:02:54.7]} 8. a4 {[%clk 0:02:58.5]} 8... b4
{[%clk 0:02:55.3]} 9. Ne2 {[%clk 0:02:59.6]} 9... O-O {[%clk 0:02:52.5]} 10. Ng3
{[%clk 0:02:55.5]} 10... Bb6 {[%clk 0:02:45.1]} 11. O-O {[%clk 0:02:53.9]} 11...
Nbd7 {[%clk 0:02:43.6]} 12. Be3 {[%clk 0:02:36.3]} 12... Nc5 {[%clk 0:02:37.5]}
13. Bc4 {[%clk 0:02:14.1]} 13... Re8 {[%clk 0:02:30.5]} 14. Ng5 {[%clk
0:02:09.9]} 14... Ra7 {[%clk 0:02:18.8]} 15. Nh5 {[%clk 0:02:02.3]} 15... h6
{[%clk 0:02:11.6]} 16. Nxf6+ {[%clk 0:02:02.6]} 16... Qxf6 {[%clk 0:02:12.8]}
17. Nf3 {[%clk 0:02:03.7]} 17... Rb7 {[%clk 0:02:03.6]} 18. Kh2 {[%clk 0:02:02]}
18... Be6 {[%clk 0:02:01.8]} 19. Bxc5 {[%clk 0:01:54.1]} 19... Bxc5 {[%clk
0:02:01.4]} 20. Bxe6 {[%clk 0:01:54.3]} 20... Rxe6 {[%clk 0:01:58.9]} 21. c3
{[%clk 0:01:48.8]} 21... d5 {[%clk 0:01:55.9]} 22. Qe2 {[%clk 0:01:27.9]} 22...
bxc3 {[%clk 0:01:39.3]} 23. bxc3 {[%clk 0:01:28.6]} 23... Rd7 {[%clk 0:01:35.7]}
24. Rab1 {[%clk 0:01:25.2]} 24... Re8 {[%clk 0:01:33.4]} 25. Rb2 {[%clk
0:01:19.2]} 25... Red8 {[%clk 0:01:25.1]} 26. Rfb1 {[%clk 0:01:17.8]} 26... Kh7
{[%clk 0:01:23.3]} 27. Rb7 {[%clk 0:01:14.9]} 27... g6 {[%clk 0:01:17.9]} 28.
Rxd7 {[%clk 0:01:12.3]} 28... Rxd7 {[%clk 0:01:19.8]} 29. Rb8 {[%clk 0:01:10.8]}
29... Kg7 {[%clk 0:01:18.2]} 30. g3 {[%clk 0:01:05.1]} 30... dxe4 {[%clk
0:01:11.6]} 31. dxe4 {[%clk 0:01:04.9]} 31... Qe6 {[%clk 0:01:10.5]} 32. Kg2
{[%clk 0:01:01.3]} 32... Qd6 {[%clk 0:00:50.9]} 33. Re8 {[%clk 0:00:59.3]} 33...
Qd3 {[%clk 0:00:35.3]} 34. Qxd3 {[%clk 0:00:21.3]} 34... Rxd3 {[%clk 0:00:37.2]}
35. Nxe5 {[%clk 0:00:22.4]} 35... Rd2 {[%clk 0:00:37.1]} 36. h4 {[%clk
0:00:23.7]} 36... Rxf2+ {[%clk 0:00:36.5]} 37. Kh3 {[%clk 0:00:24.7]} 37... Rc2
{[%clk 0:00:32.1]} 38. Nxc6 {[%clk 0:00:24.8]} 38... h5 {[%clk 0:00:31.2]} 39.
Nd4 {[%clk 0:00:22.7]} 39... Rxc3 {[%clk 0:00:30.6]} 40. Ne2 {[%clk 0:00:23.9]}
40... Rc2 {[%clk 0:00:30.8]} 41. Nf4 {[%clk 0:00:22.3]} 41... Bg1 {[%clk
0:00:29.8]} 42. Ng2 {[%clk 0:00:23.5]} 42... Ra2 {[%clk 0:00:29.3]} 43. e5
{[%clk 0:00:24.8]} 43... Rxa4 {[%clk 0:00:28.2]} 44. e6 {[%clk 0:00:26.2]} 44...
fxe6 {[%clk 0:00:28.6]} 45. Rxe6 {[%clk 0:00:28.1]} 45... Ra2 {[%clk 0:00:16.7]}
46. Ra6 {[%clk 0:00:30]} 46... a4 {[%clk 0:00:17.7]} 47. g4 {[%clk 0:00:29.6]}
47... Ra3+ {[%clk 0:00:18]} 48. Ne3 {[%clk 0:00:28.8]} 48... Rxe3+ {[%clk
0:00:18.7]} 49. Kg2 {[%clk 0:00:30.2]} 49... hxg4 {[%clk 0:00:15.5]} 50. Rxa4
{[%clk 0:00:27.3]} 50... Re1 {[%clk 0:00:15.7]} 51. Rxg4 {[%clk 0:00:28.4]}
51... Kh6 {[%clk 0:00:13.4]} 52. Kh3 {[%clk 0:00:25.9]} 52... Bc5 {[%clk
0:00:12.9]} 53. Rc4 {[%clk 0:00:26.6]} 53... Be7 {[%clk 0:00:13.7]} 54. Rd4
{[%clk 0:00:27.2]} 54... Re3+ {[%clk 0:00:14.2]} 55. Kg4 {[%clk 0:00:28.1]}
55... Rb3 {[%clk 0:00:13.9]} 56. Rc4 {[%clk 0:00:29.2]} 56... Rb4 {[%clk
0:00:10.3]} 57. Rxb4 {[%clk 0:00:30.1]} 57... Bxb4 {[%clk 0:00:12.2]} 58. h5
{[%clk 0:00:30.5]} 58... g5 {[%clk 0:00:13.4]} 0-1

[Event "*** Titled Tuesday 3|2 Blitz"]
[Site "Chess.com"]
[Date "2016.09.06"]
[Round "4"]
[White "Alexander_Donchenko"]
[Black "Keranke"]
[Result "1-0"]
[WhiteElo "2509"]
[BlackElo "2540"]
[TimeControl "180+2"]
[EndTime "11:52:11 PDT"]
[Termination "Alexander_Donchenko won by checkmate"]

1. d4 {[%clk 0:03:02]} 1... g6 {[%clk 0:03:00.5]} 2. c4 {[%clk 0:03:03.3]} 2...
Bg7 {[%clk 0:03:02]} 3. Nf3 {[%clk 0:03:04.9]} 3... Nf6 {[%clk 0:03:02.8]} 4. g3
{[%clk 0:03:06.2]} 4... O-O {[%clk 0:03:04.4]} 5. Bg2 {[%clk 0:03:07.9]} 5... d6
{[%clk 0:03:06.3]} 6. Nc3 {[%clk 0:03:09]} 6... c6 {[%clk 0:03:07.2]} 7. O-O
{[%clk 0:03:10.4]} 7... Qa5 {[%clk 0:03:08]} 8. e4 {[%clk 0:03:11.7]} 8... Qh5
{[%clk 0:03:08.6]} 9. Ng5 {[%clk 0:03:12.2]} 9... Qxd1 {[%clk 0:03:07.1]} 10.
Rxd1 {[%clk 0:03:14.1]} 10... e5 {[%clk 0:03:06.9]} 11. Nf3 {[%clk 0:03:13.6]}
11... Nbd7 {[%clk 0:03:05.5]} 12. h3 {[%clk 0:03:11.1]} 12... Re8 {[%clk
0:02:51.1]} 13. d5 {[%clk 0:03:01.7]} 13... cxd5 {[%clk 0:02:46.3]} 14. cxd5
{[%clk 0:02:57]} 14... a6 {[%clk 0:02:46]} 15. Be3 {[%clk 0:02:56.2]} 15... b5
{[%clk 0:02:42.7]} 16. Nd2 {[%clk 0:02:57.2]} 16... Bb7 {[%clk 0:02:35.8]} 17.
Nb3 {[%clk 0:02:55.5]} 17... b4 {[%clk 0:02:37.1]} 18. Na4 {[%clk 0:02:54.4]}
18... a5 {[%clk 0:02:38.6]} 19. Rac1 {[%clk 0:02:50.7]} 19... Ba6 {[%clk
0:02:30.5]} 20. Nd2 {[%clk 0:02:35.7]} 20... Bb5 {[%clk 0:02:24.1]} 21. b3
{[%clk 0:02:36.9]} 21... Rec8 {[%clk 0:02:01.1]} 22. Bf1 {[%clk 0:02:36.3]}
22... Bxa4 {[%clk 0:01:54]} 23. bxa4 {[%clk 0:02:37.3]} 23... Nc5 {[%clk
0:01:55.4]} 24. Bxc5 {[%clk 0:02:29.3]} 24... dxc5 {[%clk 0:01:57.3]} 25. f3
{[%clk 0:02:25.6]} 25... Bh6 {[%clk 0:01:57.5]} 26. Rc2 {[%clk 0:02:25.5]} 26...
Be3+ {[%clk 0:01:57.3]} 27. Kg2 {[%clk 0:02:26.3]} 27... Bd4 {[%clk 0:01:58.8]}
28. Nb3 {[%clk 0:02:12.7]} 28... Ne8 {[%clk 0:01:56.9]} 29. Bb5 {[%clk
0:01:58.1]} 29... Nd6 {[%clk 0:01:45.7]} 30. Bc6 {[%clk 0:01:58.4]} 30... Rab8
{[%clk 0:01:06.8]} 31. Nxc5 {[%clk 0:01:52.8]} 31... Bxc5 {[%clk 0:01:08.7]} 32.
Rxc5 {[%clk 0:01:54.4]} 32... b3 {[%clk 0:01:10.6]} 33. axb3 {[%clk 0:01:54.3]}
33... Rxb3 {[%clk 0:01:12.5]} 34. Rd2 {[%clk 0:01:46]} 34... Rcb8 {[%clk
0:01:12.3]} 35. Re2 {[%clk 0:01:25.1]} 35... Rb2 {[%clk 0:01:01.4]} 36. Kf2
{[%clk 0:01:19.9]} 36... Rxe2+ {[%clk 0:01:02]} 37. Kxe2 {[%clk 0:01:21.8]}
37... Rb2+ {[%clk 0:01:03.4]} 38. Kd1 {[%clk 0:00:53.8]} 38... Rb3 {[%clk
0:00:58.4]} 39. Rxa5 {[%clk 0:00:54.2]} 39... Rxf3 {[%clk 0:00:59.6]} 40. Ra8+
{[%clk 0:00:49.4]} 40... Kg7 {[%clk 0:01:00.7]} 41. a5 {[%clk 0:00:43.5]} 41...
Ra3 {[%clk 0:00:50.9]} 42. a6 {[%clk 0:00:42]} 42... Nxe4 {[%clk 0:00:51.8]} 43.
Kc2 {[%clk 0:00:38.3]} 43... Nd6 {[%clk 0:00:35.9]} 44. Rd8 {[%clk 0:00:22.9]}
44... Nc4 {[%clk 0:00:36.7]} 45. Bb7 {[%clk 0:00:21.8]} 45... e4 {[%clk
0:00:35]} 46. d6 {[%clk 0:00:20.8]} 46... e3 {[%clk 0:00:16.2]} 47. d7 {[%clk
0:00:22.3]} 47... Ne5 {[%clk 0:00:15.2]} 48. Rg8+ {[%clk 0:00:22]} 48... Kxg8
{[%clk 0:00:16.2]} 49. d8=Q+ {[%clk 0:00:23.9]} 49... Kg7 {[%clk 0:00:17.4]} 50.
Qe7 {[%clk 0:00:23.6]} 50... Ra5 {[%clk 0:00:16.8]} 51. Qc7 {[%clk 0:00:20.8]}
51... Rb5 {[%clk 0:00:14.9]} 52. a7 {[%clk 0:00:21.4]} 52... e2 {[%clk
0:00:16.3]} 53. Qc3 {[%clk 0:00:19.3]} 53... Rc5 {[%clk 0:00:15.9]} 54. Qxc5
{[%clk 0:00:20.5]} 54... e1=Q {[%clk 0:00:17.4]} 55. a8=Q {[%clk 0:00:19.7]}
55... Qe2+ {[%clk 0:00:18.6]} 56. Kb3 {[%clk 0:00:19.3]} 56... Qd3+ {[%clk
0:00:19.6]} 57. Qc3 {[%clk 0:00:20.2]} 57... Qb1+ {[%clk 0:00:17.2]} 58. Ka3
{[%clk 0:00:21.3]} 58... f6 {[%clk 0:00:15.8]} 59. Bd5 {[%clk 0:00:21.3]} 59...
Kh6 {[%clk 0:00:13.5]} 60. Qf8+ {[%clk 0:00:18.9]} 60... Kg5 {[%clk 0:00:11]}
61. Qe3+ {[%clk 0:00:18.8]} 61... Kf5 {[%clk 0:00:11]} 62. Qf4# {[%clk
0:00:19.7]} 1-0

[Event "*** Titled Tuesday 3|2 Blitz"]
[Site "Chess.com"]
[Date "2016.09.06"]
[Round "4"]
[White "Haridaskesavan"]
[Black "Usurpov"]
[Result "1/2-1/2"]
[WhiteElo "2197"]
[BlackElo "2304"]
[TimeControl "180+2"]
[EndTime "11:52:40 PDT"]
[Termination "Game drawn - insufficient material"]

1. e4 {[%clk 0:03:02]} 1... c5 {[%clk 0:03:00.5]} 2. c3 {[%clk 0:03:02.4]} 2...
e6 {[%clk 0:03:00.7]} 3. d4 {[%clk 0:03:03.5]} 3... d5 {[%clk 0:03:02.3]} 4.
exd5 {[%clk 0:03:04.6]} 4... exd5 {[%clk 0:03:03.9]} 5. Nf3 {[%clk 0:03:05.8]}
5... Nf6 {[%clk 0:03:05.2]} 6. Bb5+ {[%clk 0:03:06.9]} 6... Bd7 {[%clk
0:03:06.5]} 7. Bxd7+ {[%clk 0:03:07.3]} 7... Nbxd7 {[%clk 0:03:08.4]} 8. O-O
{[%clk 0:03:08.3]} 8... Be7 {[%clk 0:03:10]} 9. dxc5 {[%clk 0:03:09.5]} 9...
Nxc5 {[%clk 0:03:11.9]} 10. Re1 {[%clk 0:03:05]} 10... O-O {[%clk 0:03:12.3]}
11. Na3 {[%clk 0:03:02.6]} 11... Re8 {[%clk 0:03:09.8]} 12. Nc2 {[%clk
0:03:03.6]} 12... a5 {[%clk 0:02:58.8]} 13. Be3 {[%clk 0:02:57.6]} 13... Nce4
{[%clk 0:02:53.7]} 14. Nfd4 {[%clk 0:02:50.6]} 14... Bf8 {[%clk 0:02:52.5]} 15.
Qf3 {[%clk 0:02:48.5]} 15... g6 {[%clk 0:02:50.1]} 16. Rad1 {[%clk 0:02:48]}
16... Bg7 {[%clk 0:02:42.9]} 17. Bf4 {[%clk 0:02:38]} 17... h5 {[%clk
0:02:28.7]} 18. h4 {[%clk 0:02:32.7]} 18... Ng4 {[%clk 0:02:21]} 19. Bg3 {[%clk
0:02:15.8]} 19... Ra6 {[%clk 0:02:16.4]} 20. Ne2 {[%clk 0:02:03.9]} 20... Rf6
{[%clk 0:02:04.9]} 21. Nf4 {[%clk 0:02:04.9]} 21... Nxg3 {[%clk 0:01:17.1]} 22.
Qxg3 {[%clk 0:02:03.2]} 22... Rxe1+ {[%clk 0:01:04.6]} 23. Rxe1 {[%clk
0:02:02.7]} 23... Qb6 {[%clk 0:00:59.1]} 24. Nxd5 {[%clk 0:01:51.8]} 24... Qxf2+
{[%clk 0:00:58.3]} 25. Qxf2 {[%clk 0:01:44]} 25... Rxf2 {[%clk 0:01:00.2]} 26.
Nce3 {[%clk 0:00:25.6]} 26... Rxb2 {[%clk 0:00:54.9]} 27. Nc4 {[%clk 0:00:19.3]}
27... Rxa2 {[%clk 0:00:48.5]} 28. g3 {[%clk 0:00:20.5]} 28... b5 {[%clk
0:00:44.3]} 29. Nd6 {[%clk 0:00:20.5]} 29... b4 {[%clk 0:00:36]} 30. Re8+ {[%clk
0:00:20.6]} 30... Bf8 {[%clk 0:00:23]} 31. cxb4 {[%clk 0:00:13.6]} 31... axb4
{[%clk 0:00:21.2]} 32. Nxb4 {[%clk 0:00:14.3]} 32... Ra1+ {[%clk 0:00:21.8]} 33.
Kg2 {[%clk 0:00:14.7]} 33... Kg7 {[%clk 0:00:23.1]} 34. Rd8 {[%clk 0:00:07.9]}
34... Rd1 {[%clk 0:00:17.3]} 35. Ne8+ {[%clk 0:00:08.6]} 35... Kg8 {[%clk
0:00:17.4]} 36. Rxd1 {[%clk 0:00:10.1]} 36... Bxb4 {[%clk 0:00:19]} 37. Rd8
{[%clk 0:00:10.5]} 37... Kh7 {[%clk 0:00:12]} 38. Rd7 {[%clk 0:00:10.8]} 38...
Kg8 {[%clk 0:00:11.7]} 39. Nd6 {[%clk 0:00:10.3]} 39... Bxd6 {[%clk 0:00:08.8]}
40. Rxd6 {[%clk 0:00:09.9]} 40... Kg7 {[%clk 0:00:10.7]} 41. Ra6 {[%clk
0:00:10.1]} 41... Kh6 {[%clk 0:00:11.1]} 42. Kf3 {[%clk 0:00:10.8]} 42... Kg7
{[%clk 0:00:12.7]} 43. Kf4 {[%clk 0:00:11.4]} 43... Nf6 {[%clk 0:00:14.1]} 44.
Ra5 {[%clk 0:00:09.2]} 44... Ng4 {[%clk 0:00:10.9]} 45. Ra6 {[%clk 0:00:06.4]}
45... Nf6 {[%clk 0:00:10.5]} 46. Ke5 {[%clk 0:00:06]} 46... Ng4+ {[%clk
0:00:11]} 47. Kd6 {[%clk 0:00:06.8]} 47... Nh6 {[%clk 0:00:11.7]} 48. Ke7 {[%clk
0:00:07.4]} 48... Nf5+ {[%clk 0:00:12.2]} 49. Ke8 {[%clk 0:00:08.4]} 49... Nxg3
{[%clk 0:00:13.3]} 50. Ra7 {[%clk 0:00:09.2]} 50... Nf5 {[%clk 0:00:14.4]} 51.
Rxf7+ {[%clk 0:00:10]} 51... Kh6 {[%clk 0:00:15.7]} 52. Rf8 {[%clk 0:00:08.4]}
52... Nxh4 {[%clk 0:00:15.3]} 53. Kf7 {[%clk 0:00:09.5]} 53... Kg5 {[%clk
0:00:13.9]} 54. Rg8 {[%clk 0:00:09.1]} 54... Kg4 {[%clk 0:00:14.9]} 55. Kf6
{[%clk 0:00:07.9]} 55... Kf4 {[%clk 0:00:13.7]} 56. Ra8 {[%clk 0:00:07.4]} 56...
Kg3 {[%clk 0:00:11.9]} 57. Ra3+ {[%clk 0:00:06.9]} 57... Nf3 {[%clk 0:00:12.6]}
58. Kxg6 {[%clk 0:00:07.5]} 58... h4 {[%clk 0:00:14.1]} 59. Ra1 {[%clk 0:00:07]}
59... Kg2 {[%clk 0:00:14.2]} 60. Ra8 {[%clk 0:00:07.2]} 60... h3 {[%clk
0:00:15]} 61. Rh8 {[%clk 0:00:07.9]} 61... Kg3 {[%clk 0:00:16.2]} 62. Rxh3+
{[%clk 0:00:08.5]} 62... Kxh3 {[%clk 0:00:17.1]} 1/2-1/2

[Event "*** Titled Tuesday 3|2 Blitz"]
[Site "Chess.com"]
[Date "2016.09.06"]
[Round "4"]
[White "Gordima"]
[Black "roldieyi"]
[Result "1/2-1/2"]
[WhiteElo "2509"]
[BlackElo "2229"]
[TimeControl "180+2"]
[EndTime "11:52:42 PDT"]
[Termination "Game drawn by repetition"]

1. Nf3 {[%clk 0:03:02]} 1... Nf6 {[%clk 0:03:00.9]} 2. c4 {[%clk 0:03:03.2]}
2... e6 {[%clk 0:03:02.8]} 3. g3 {[%clk 0:03:03.6]} 3... d5 {[%clk 0:03:04.3]}
4. Bg2 {[%clk 0:03:04.9]} 4... Be7 {[%clk 0:03:05.3]} 5. O-O {[%clk 0:03:06.1]}
5... O-O {[%clk 0:03:06.9]} 6. b3 {[%clk 0:03:07.7]} 6... b6 {[%clk 0:03:08.1]}
7. Bb2 {[%clk 0:03:09.1]} 7... c5 {[%clk 0:03:08.9]} 8. e3 {[%clk 0:03:10.2]}
8... Bb7 {[%clk 0:03:09]} 9. Qe2 {[%clk 0:03:08.6]} 9... dxc4 {[%clk 0:03:08.2]}
10. bxc4 {[%clk 0:03:08.9]} 10... Nbd7 {[%clk 0:03:05.9]} 11. Nc3 {[%clk
0:03:08.9]} 11... a6 {[%clk 0:03:05.1]} 12. d3 {[%clk 0:03:07.4]} 12... Qc7
{[%clk 0:03:05.8]} 13. a4 {[%clk 0:03:06.8]} 13... Bc6 {[%clk 0:02:56]} 14. Rab1
{[%clk 0:03:04.8]} 14... Rab8 {[%clk 0:02:44]} 15. Ba1 {[%clk 0:03:04.6]} 15...
Bd6 {[%clk 0:02:37.7]} 16. h3 {[%clk 0:02:58.9]} 16... Ne5 {[%clk 0:02:37.7]}
17. Nxe5 {[%clk 0:02:48.8]} 17... Bxg2 {[%clk 0:02:38.2]} 18. Kxg2 {[%clk
0:02:50.7]} 18... Bxe5 {[%clk 0:02:38.9]} 19. f4 {[%clk 0:02:52.2]} 19... Bxc3
{[%clk 0:02:39.3]} 20. Bxc3 {[%clk 0:02:52.6]} 20... Nd7 {[%clk 0:02:33.6]} 21.
Qg4 {[%clk 0:02:48.3]} 21... g6 {[%clk 0:02:29.7]} 22. e4 {[%clk 0:02:37.4]}
22... Qc6 {[%clk 0:02:27.6]} 23. f5 {[%clk 0:02:19.9]} 23... exf5 {[%clk
0:02:23.7]} 24. Rxf5 {[%clk 0:02:20.3]} 24... Rbd8 {[%clk 0:01:49.9]} 25. Rbf1
{[%clk 0:01:54.8]} 25... f6 {[%clk 0:01:44.6]} 26. Rd5 {[%clk 0:01:52]} 26...
Ne5 {[%clk 0:01:39.4]} 27. Bxe5 {[%clk 0:01:48.9]} 27... fxe5 {[%clk 0:01:40.6]}
28. Rxf8+ {[%clk 0:01:44.5]} 28... Rxf8 {[%clk 0:01:40.2]} 29. Rxe5 {[%clk
0:01:45.1]} 29... Qxa4 {[%clk 0:01:36]} 30. Qe6+ {[%clk 0:01:46]} 30... Rf7
{[%clk 0:01:34.4]} 31. Qe8+ {[%clk 0:01:36.6]} 31... Qxe8 {[%clk 0:01:34.1]} 32.
Rxe8+ {[%clk 0:01:38.5]} 32... Kg7 {[%clk 0:01:36]} 33. Rb8 {[%clk 0:01:23.8]}
33... Rd7 {[%clk 0:01:28.3]} 34. Rxb6 {[%clk 0:01:20.9]} 34... Rxd3 {[%clk
0:01:29.1]} 35. Rxa6 {[%clk 0:01:03.6]} 35... Rd4 {[%clk 0:01:30]} 36. Kf3
{[%clk 0:01:04.9]} 36... Rxc4 {[%clk 0:01:27.3]} 37. Kf4 {[%clk 0:01:06.5]}
37... Rc1 {[%clk 0:01:16]} 38. Ra7+ {[%clk 0:01:04.5]} 38... Kf6 {[%clk
0:01:09.9]} 39. Ra6+ {[%clk 0:00:44.3]} 39... Kf7 {[%clk 0:01:06.7]} 40. Ke5
{[%clk 0:00:44]} 40... c4 {[%clk 0:01:02]} 41. Ra7+ {[%clk 0:00:45]} 41... Kg8
{[%clk 0:00:59.8]} 42. Rc7 {[%clk 0:00:40]} 42... c3 {[%clk 0:00:59.7]} 43. Kf6
{[%clk 0:00:40.6]} 43... Rf1+ {[%clk 0:01:00]} 44. Ke6 {[%clk 0:00:41.2]} 44...
Re1 {[%clk 0:00:50.8]} 45. e5 {[%clk 0:00:40.4]} 45... Re3 {[%clk 0:00:51.1]}
46. g4 {[%clk 0:00:35.4]} 46... Rxh3 {[%clk 0:00:49.8]} 47. g5 {[%clk
0:00:34.5]} 47... Rg3 {[%clk 0:00:47.3]} 48. Rc8+ {[%clk 0:00:29.6]} 48... Kg7
{[%clk 0:00:47.3]} 49. Rc7+ {[%clk 0:00:30.4]} 49... Kg8 {[%clk 0:00:44.8]} 50.
Kd6 {[%clk 0:00:25]} 50... Rd3+ {[%clk 0:00:42.4]} 51. Ke7 {[%clk 0:00:24.3]}
51... Rg3 {[%clk 0:00:37.6]} 52. e6 {[%clk 0:00:23.3]} 52... Rxg5 {[%clk
0:00:38]} 53. Kd6 {[%clk 0:00:20.2]} 53... Rg3 {[%clk 0:00:33]} 54. Rc8+ {[%clk
0:00:19.3]} 54... Kg7 {[%clk 0:00:32.6]} 55. e7 {[%clk 0:00:20.7]} 55... Rd3+
{[%clk 0:00:33.3]} 56. Ke6 {[%clk 0:00:14.6]} 56... Re3+ {[%clk 0:00:30.8]} 57.
Kd7 {[%clk 0:00:15.1]} 57... Rd3+ {[%clk 0:00:30.1]} 58. Ke6 {[%clk 0:00:08.7]}
58... Re3+ {[%clk 0:00:30.7]} 59. Kd7 {[%clk 0:00:09.6]} 59... Rd3+ {[%clk
0:00:31.7]} 60. Ke6 {[%clk 0:00:09.9]} 60... Re3+ {[%clk 0:00:31.8]} 1/2-1/2